[Event "Masterklassen-Elit 2025"]
[Site "Uppsala, Sweden"]
[Date "2025.06.28"]
[Round "1.1"]
[White "Strom-Engdahl, Alexander"]
[Black "Landgren, Andreas"]
[Result "0-1"]
[TimeControl "90 min for 40 move + 30 min with an increment of 30 sec starting move 1"]
[WhiteTitle "FM"]
[BlackTitle "FM"]
[WhiteFideId "1741586"]
[BlackFideId "1704311"]
[WhiteElo "2320"]
[BlackElo "2261"]

1. e4 {[%clk 01:30:05]} {[%emt 00:00:54]} c5 {[%clk 01:30:47]} {[%emt
00:00:14]} 2. Nf3 {[%clk 01:30:28]} {[%emt 00:00:08]} d6 {[%clk 01:31:07]}
{[%emt 00:00:09]} 3. d4 {[%clk 01:30:52]} {[%emt 00:00:06]} cxd4 {[%clk
01:31:31]} {[%emt 00:00:06]} 4. Nxd4 {[%clk 01:31:16]} {[%emt 00:00:06]} Nf6
{[%clk 01:31:51]} {[%emt 00:00:10]} 5. Nc3 {[%clk 01:31:39]} {[%emt 00:00:06]}
a6 {[%clk 01:31:54]} {[%emt 00:00:27]} 6. h3 {[%clk 01:32:04]} {[%emt
00:00:05]} e5 {[%clk 01:31:10]} {[%emt 00:01:14]} 7. Nf3 {[%clk 01:31:48]}
{[%emt 00:00:46]} Be7 {[%clk 01:30:30]} {[%emt 00:01:10]} 8. g4 {[%clk
01:31:55]} {[%emt 00:00:23]} h6 {[%clk 01:30:14]} {[%emt 00:00:46]} 9. Rg1
{[%clk 01:32:19]} {[%emt 00:00:06]} b5 {[%clk 01:29:13]} {[%emt 00:01:32]} 10.
g5 {[%clk 01:32:16]} {[%emt 00:00:32]} hxg5 {[%clk 01:29:25]} {[%emt 00:00:18]}
11. Nxg5 {[%clk 01:32:45]} {[%emt 00:00:02]} Bb7 {[%clk 01:27:56]} {[%emt
00:01:58]} 12. Be3 {[%clk 01:33:02]} {[%emt 00:00:12]} Qc7 {[%clk 01:26:58]}
{[%emt 00:01:29]} 13. Qd2 {[%clk 01:31:31]} {[%emt 00:02:01]} Nbd7 {[%clk
01:25:47]} {[%emt 00:01:41]} 14. O-O-O {[%clk 01:31:37]} {[%emt 00:00:24]} Rc8
{[%clk 01:22:49]} {[%emt 00:03:29]} 15. Kb1 {[%clk 01:31:41]} {[%emt 00:00:26]}
b4 {[%clk 01:21:32]} {[%emt 00:01:46]} 16. Nd5 {[%clk 01:30:24]} {[%emt
00:01:47]} Nxd5 {[%clk 01:21:15]} {[%emt 00:00:47]} 17. exd5 {[%clk 01:30:48]}
{[%emt 00:00:06]} Nb6 {[%clk 01:19:31]} {[%emt 00:02:14]} 18. Qd3 {[%clk
01:30:04]} {[%emt 00:01:15]} Rh4 {[%clk 01:13:03]} {[%emt 00:06:57]} 19. Bg2
{[%clk 01:29:06]} {[%emt 00:01:28]} Nc4 {[%clk 01:10:13]} {[%emt 00:03:19]} 20.
Bc1 {[%clk 01:27:11]} {[%emt 00:02:24]} Rd4 {[%clk 01:08:01]} {[%emt 00:02:44]}
21. Qe2 {[%clk 01:26:01]} {[%emt 00:01:40]} Na3+ {[%clk 01:07:34]} {[%emt
00:00:56]} 22. bxa3 {[%clk 01:26:09]} {[%emt 00:00:23]} bxa3 {[%clk 01:07:57]}
{[%emt 00:00:07]} 23. Rd3 {[%clk 00:59:41]} {[%emt 00:26:57]} a5 {[%clk
01:07:30]} {[%emt 00:00:58]} 24. Bxa3 {[%clk 00:35:34]} {[%emt 00:24:37]} Rxd3
{[%clk 00:41:07]} {[%emt 00:26:53]} 25. Qxd3 {[%clk 00:26:34]} {[%emt
00:09:30]} Bxg5 {[%clk 00:40:58]} {[%emt 00:00:39]} 26. Be4 {[%clk 00:23:57]}
{[%emt 00:03:07]} Rb8 {[%clk 00:29:11]} {[%emt 00:12:17]} 27. Bb2 {[%clk
00:21:27]} {[%emt 00:02:59]} Bh6 {[%clk 00:24:52]} {[%emt 00:04:49]} 28. Qb5+
{[%clk 00:15:12]} {[%emt 00:06:45]} Ke7 {[%clk 00:13:17]} {[%emt 00:12:06]} 29.
Rg3 {[%clk 00:10:59]} {[%emt 00:04:42]} Bc8 {[%clk 00:09:24]} {[%emt 00:04:24]}
30. Qe2 {[%clk 00:08:45]} {[%emt 00:02:43]} a4 {[%clk 00:07:51]} {[%emt
00:02:04]} 31. c4 {[%clk 00:05:01]} {[%emt 00:04:13]} Ba6 {[%clk 00:03:29]}
{[%emt 00:04:53]} 32. Rc3 {[%clk 00:05:22]} {[%emt 00:00:08]} g6 {[%clk
00:02:12]} {[%emt 00:01:47]} 33. Bd3 {[%clk 00:04:58]} {[%emt 00:00:55]} Bg7
{[%clk 00:01:38]} {[%emt 00:01:04]} 34. c5 {[%clk 00:03:47]} {[%emt 00:01:41]}
Bxd3+ {[%clk 00:01:28]} {[%emt 00:00:40]} 35. Rxd3 {[%clk 00:02:33]} {[%emt
00:01:44]} Qxc5 {[%clk 00:01:25]} {[%emt 00:00:33]} 36. Ka1 {[%clk 00:02:28]}
{[%emt 00:00:35]} Kf8 {[%clk 00:01:32]} {[%emt 00:00:24]} 37. Qd2 {[%clk
00:00:56]} {[%emt 00:02:02]} Rxb2 38. Kxb2 {[%clk 00:01:24]} e4+ {[%clk
00:01:18]} {[%emt 00:00:10]} 39. Rc3 {[%clk 00:01:53]} Bxc3+ {[%clk 00:01:12]}
{[%emt 00:00:37]} 40. Qxc3 {[%clk 00:02:22]} {[%emt 00:00:01]} Qxf2+ {[%clk
00:01:31]} {[%emt 00:00:10]} 41. Kc1 {[%clk 00:27:44]} {[%emt 00:05:08]} Qc5
{[%clk 00:27:53]} {[%emt 00:04:09]} 0-1

[Event "Masterklassen-Elit 2025"]
[Site "Uppsala, Sweden"]
[Date "2025.06.28"]
[Round "1.2"]
[White "Andersson, Tommy"]
[Black "Ostlund, Joar"]
[Result "0-1"]
[TimeControl "90 min for 40 move + 30 min with an increment of 30 sec starting move 1"]
[WhiteTitle "IM"]
[BlackTitle "FM"]
[WhiteFideId "1703803"]
[BlackFideId "1735020"]
[WhiteElo "2348"]
[BlackElo "2322"]

1. d4 {[%clk 01:30:57]} {[%emt 00:00:02]} Nf6 {[%clk 01:30:54]} {[%emt
00:00:06]} 2. c4 {[%clk 01:30:14]} {[%emt 00:01:13]} e6 {[%clk 01:31:15]}
{[%emt 00:00:08]} 3. Nf3 {[%clk 01:30:10]} {[%emt 00:00:34]} b6 {[%clk
01:31:31]} {[%emt 00:00:15]} 4. a3 {[%clk 01:27:53]} {[%emt 00:02:47]} Bb7
{[%clk 01:31:13]} {[%emt 00:00:47]} 5. Nc3 {[%clk 01:28:08]} {[%emt 00:00:15]}
d5 {[%clk 01:30:34]} {[%emt 00:01:09]} 6. cxd5 {[%clk 01:27:48]} {[%emt
00:00:50]} Nxd5 {[%emt 00:01:04]} 7. e3 {[%clk 01:26:12]} {[%emt 00:01:34]} Be7
{[%clk 01:28:41]} {[%emt 00:02:21]} 8. Bd3 {[%clk 01:24:26]} {[%emt 00:02:16]}
c5 {[%clk 01:18:39]} {[%emt 00:10:31]} 9. O-O {[%clk 01:14:57]} {[%emt
00:09:59]} cxd4 {[%clk 01:09:25]} {[%emt 00:09:45]} 10. exd4 {[%clk 01:07:50]}
{[%emt 00:07:36]} O-O {[%clk 01:09:08]} {[%emt 00:00:48]} 11. Qe2 {[%clk
00:57:13]} {[%emt 00:11:07]} Nd7 {[%clk 00:59:35]} {[%emt 00:10:02]} 12. Ne4
{[%clk 00:51:11]} {[%emt 00:06:32]} Qc7 {[%clk 00:41:02]} {[%emt 00:19:04]} 13.
Neg5 {[%clk 00:43:50]} h6 {[%clk 00:36:12]} {[%emt 00:13:12]} 14. Nh3 {[%clk
00:34:59]} {[%emt 00:09:20]} Bd6 {[%clk 00:34:36]} {[%emt 00:02:06]} 15. Re1
{[%clk 00:27:57]} {[%emt 00:07:32]} Nf4 {[%clk 00:21:36]} {[%emt 00:13:30]} 16.
Bxf4 {[%clk 00:22:58]} {[%emt 00:05:28]} Bxf4 {[%clk 00:22:02]} {[%emt
00:00:04]} 17. Ne5 {[%clk 00:23:04]} {[%emt 00:00:25]} Bxe5 {[%clk 00:22:16]}
{[%emt 00:00:17]} 18. dxe5 {[%clk 00:23:25]} {[%emt 00:00:08]} Rfd8 {[%clk
00:22:19]} {[%emt 00:00:26]} 19. Nf4 {[%clk 00:15:36]} {[%emt 00:08:20]} Qxe5
{[%clk 00:18:38]} {[%emt 00:04:11]} 20. Qxe5 {[%clk 00:15:30]} {[%emt
00:00:36]} Nxe5 {[%clk 00:19:05]} {[%emt 00:00:02]} 21. Rxe5 {[%clk 00:15:58]}
{[%emt 00:00:02]} Rd4 {[%clk 00:18:51]} {[%emt 00:00:45]} 22. Nxe6 {[%clk
00:10:33]} {[%emt 00:05:55]} Rxd3 {[%clk 00:18:47]} {[%emt 00:00:34]} 23. Nf4
{[%clk 00:10:38]} {[%emt 00:00:25]} Rd2 {[%clk 00:16:08]} {[%emt 00:03:09]} 24.
Re7 {[%clk 00:10:37]} {[%emt 00:00:31]} Bc6 {[%clk 00:15:17]} {[%emt 00:01:20]}
25. Rc7 {[%clk 00:08:18]} {[%emt 00:02:50]} Bb5 {[%clk 00:14:31]} {[%emt
00:01:15]} 26. b4 {[%clk 00:07:01]} {[%emt 00:01:47]} a5 {[%clk 00:10:19]}
{[%emt 00:04:42]} 27. bxa5 {[%clk 00:07:23]} {[%emt 00:00:09]} Rxa5 {[%clk
00:10:15]} {[%emt 00:00:34]} 28. h4 {[%clk 00:07:18]} {[%emt 00:00:35]} Rd4
{[%clk 00:07:55]} {[%emt 00:02:50]} 29. g3 {[%clk 00:07:07]} {[%emt 00:00:40]}
g5 {[%clk 00:07:15]} {[%emt 00:01:11]} 30. hxg5 {[%clk 00:05:09]} {[%emt
00:02:28]} hxg5 {[%clk 00:07:43]} {[%emt 00:00:02]} 31. Ng2 {[%clk 00:04:00]}
{[%emt 00:01:38]} Be2 {[%clk 00:04:58]} {[%emt 00:03:16]} 32. Rc3 {[%clk
00:03:28]} {[%emt 00:01:02]} Rd3 {[%clk 00:01:07]} {[%emt 00:04:21]} 33. Rxd3
{[%clk 00:01:37]} {[%emt 00:02:21]} Bxd3 {[%clk 00:01:35]} {[%emt 00:00:02]} 34.
Ne3 {[%clk 00:01:41]} {[%emt 00:00:26]} f5 {[%clk 00:01:17]} {[%emt 00:00:48]}
35. f3 {[%clk 00:01:26]} {[%emt 00:00:45]} Kf7 {[%clk 00:01:12]} {[%emt
00:00:35]} 36. Kf2 {[%clk 00:01:15]} {[%emt 00:00:41]} Ke6 {[%clk 00:01:33]}
{[%emt 00:00:10]} 37. Re1 {[%clk 00:00:52]} {[%emt 00:00:53]} Kf6 {[%clk
00:01:35]} {[%emt 00:00:27]} 38. f4 {[%clk 00:00:42]} {[%emt 00:00:40]} g4
{[%clk 00:01:01]} {[%emt 00:01:04]} 39. Rd1 {[%clk 00:00:38]} {[%emt 00:00:35]}
Rxa3 {[%clk 00:00:59]} {[%emt 00:00:31]} 40. Nd5+ {[%clk 00:00:39]} {[%emt
00:00:30]} Ke6 {[%clk 00:01:00]} {[%emt 00:00:28]} 41. Nxb6 {[%clk 00:30:05]}
{[%emt 00:01:05]} Be4 {[%clk 00:13:13]} {[%emt 00:18:16]} 42. Nd7 {[%clk
00:27:52]} {[%emt 00:02:43]} Rf3+ {[%clk 00:10:59]} {[%emt 00:02:44]} 43. Ke2
{[%clk 00:27:39]} {[%emt 00:00:44]} Rc3 {[%clk 00:08:39]} {[%emt 00:02:51]} 44.
Rd4 {[%clk 00:26:50]} {[%emt 00:01:19]} Ke7 {[%clk 00:05:21]} {[%emt 00:03:48]}
45. Ne5 {[%clk 00:22:43]} {[%emt 00:04:37]} Rxg3 {[%clk 00:05:38]} {[%emt
00:00:12]} 46. Kf2 {[%clk 00:17:35]} {[%emt 00:05:38]} Rg2+ {[%clk 00:06:00]}
{[%emt 00:00:08]} 47. Ke3 {[%clk 00:17:25]} {[%emt 00:00:40]} Ke6 {[%clk
00:05:26]} {[%emt 00:01:04]} 48. Rd8 {[%clk 00:16:53]} {[%emt 00:01:02]} Ra2
{[%clk 00:02:56]} {[%emt 00:03:00]} 49. Re8+ {[%clk 00:14:54]} {[%emt
00:02:29]} Kd5 {[%clk 00:03:18]} {[%emt 00:00:08]} 50. Rd8+ {[%clk 00:12:17]}
{[%emt 00:03:07]} Kc5 {[%clk 00:03:40]} 51. Rc8+ {[%clk 00:05:10]} {[%emt
00:07:45]} Kd6 {[%clk 00:03:59]} {[%emt 00:00:10]} 52. Rg8 {[%clk 00:05:19]}
{[%emt 00:00:21]} Ra3+ {[%clk 00:01:19]} {[%emt 00:03:12]} 53. Kd4 {[%clk
00:05:13]} {[%emt 00:00:34]} Ra4+ {[%clk 00:01:32]} {[%emt 00:00:18]} 54. Ke3
{[%clk 00:04:42]} {[%emt 00:01:00]} Bf3 {[%clk 00:01:32]} {[%emt 00:00:30]} 55.
Nf7+ {[%clk 00:01:35]} {[%emt 00:03:37]} Kd5 {[%clk 00:00:34]} 56. Nh6 {[%clk
00:01:23]} {[%emt 00:02:10]} Ra3+ {[%clk 00:00:36]} 57. Kf2 {[%clk 00:00:50]}
{[%emt 00:01:31]} Be4 {[%clk 00:00:32]} 58. Nxg4 {[%clk 00:00:48]} {[%emt
00:01:06]} fxg4 {[%clk 00:00:39]} 59. Rxg4 {[%clk 00:01:16]} {[%emt 00:00:25]}
Kd4 {[%clk 00:01:00]} {[%emt 00:00:10]} 60. f5 {[%clk 00:00:41]} {[%emt
00:01:05]} Ra2+ {[%clk 00:00:32]} {[%emt 00:00:57]} 61. Kg3 {[%clk 00:00:43]}
{[%emt 00:00:28]} Ke5 {[%emt 00:00:30]} 62. f6 {[%clk 00:00:45]} {[%emt
00:00:06]} Rg2+ {[%clk 00:01:07]} {[%emt 00:00:17]} 63. Kh4 {[%clk 00:01:07]}
{[%emt 00:00:08]} Rf2 {[%clk 00:01:28]} {[%emt 00:00:09]} 64. Kg5 {[%emt
00:01:05]} Rf5 {[%clk 00:01:49]} {[%emt 00:00:06]} 65. Kg6 {[%clk 00:00:45]}
{[%emt 00:00:21]} Rxf6+ {[%clk 00:02:04]} {[%emt 00:00:13]} 66. Kg7 {[%clk
00:01:10]} {[%emt 00:00:06]} Ra6 {[%clk 00:02:16]} {[%emt 00:00:17]} 67. Rg3
{[%clk 00:00:33]} {[%emt 00:01:09]} Ra7+ {[%clk 00:02:05]} {[%emt 00:00:41]} 68.
Kf8 {[%clk 00:00:32]} {[%emt 00:00:30]} Kf6 {[%clk 00:01:43]} {[%emt 00:00:52]}
69. Ke8 {[%clk 00:00:42]} {[%emt 00:00:21]} Bf5 {[%clk 00:01:53]} {[%emt
00:00:19]} 70. Kd8 {[%clk 00:00:40]} {[%emt 00:00:33]} Rd7+ {[%clk 00:02:18]}
{[%emt 00:00:05]} 71. Ke8 {[%clk 00:01:01]} {[%emt 00:00:09]} Rc7 {[%clk
00:02:39]} {[%emt 00:00:08]} 0-1

[Event "Masterklassen-Elit 2025"]
[Site "Uppsala, Sweden"]
[Date "2025.06.28"]
[Round "1.3"]
[White "Ljung, Harald"]
[Black "Carlsson, Ludvig"]
[Result "1-0"]
[TimeControl "90 min for 40 move + 30 min with an increment of 30 sec starting move 1"]
[BlackTitle "IM"]
[WhiteFideId "1738178"]
[BlackFideId "1727010"]
[WhiteElo "2194"]
[BlackElo "2379"]

1. d4 {[%clk 01:30:58]} {[%emt 00:00:02]} Nf6 {[%clk 01:30:43]} {[%emt
00:00:16]} 2. Nf3 {[%clk 01:31:16]} {[%emt 00:00:12]} e6 {[%clk 01:30:55]}
{[%emt 00:00:18]} 3. e3 {[%clk 01:26:13]} {[%emt 00:05:33]} c5 {[%clk
01:30:46]} {[%emt 00:00:39]} 4. Be2 {[%clk 01:26:37]} {[%emt 00:00:07]} b6
{[%clk 01:27:17]} {[%emt 00:03:59]} 5. O-O {[%clk 01:25:43]} {[%emt 00:01:24]}
Bb7 {[%clk 01:27:30]} {[%emt 00:00:18]} 6. b3 {[%clk 01:25:47]} {[%emt
00:00:26]} cxd4 {[%clk 01:27:41]} {[%emt 00:00:17]} 7. exd4 {[%clk 01:24:07]}
{[%emt 00:02:11]} Be7 {[%clk 01:27:37]} {[%emt 00:00:33]} 8. c4 {[%clk
01:21:13]} {[%emt 00:03:26]} d5 {[%clk 01:27:10]} {[%emt 00:00:56]} 9. Nc3
{[%clk 01:20:37]} {[%emt 00:01:07]} O-O {[%clk 01:27:26]} {[%emt 00:00:12]} 10.
Bb2 {[%clk 01:19:57]} {[%emt 00:01:12]} Nc6 {[%clk 01:26:26]} {[%emt 00:01:29]}
11. Rc1 {[%clk 01:15:02]} {[%emt 00:05:25]} Rc8 {[%clk 01:26:35]} {[%emt
00:00:22]} 12. Qd2 {[%clk 01:03:02]} {[%emt 00:12:30]} dxc4 {[%clk 01:24:46]}
{[%emt 00:02:18]} 13. bxc4 {[%clk 01:02:31]} {[%emt 00:01:02]} Na5 {[%clk
01:25:08]} {[%emt 00:00:08]} 14. Ne5 {[%clk 00:58:57]} {[%emt 00:04:04]} Nd7
{[%clk 01:24:40]} {[%emt 00:00:57]} 15. Nxd7 {[%clk 00:45:57]} {[%emt
00:13:30]} Qxd7 {[%clk 01:24:57]} {[%emt 00:00:12]} 16. Nd1 {[%clk 00:45:55]}
{[%emt 00:00:33]} Qd6 {[%clk 00:59:44]} {[%emt 00:25:42]} 17. Ne3 {[%clk
00:36:37]} {[%emt 00:09:49]} Bg5 {[%clk 00:52:51]} {[%emt 00:07:23]} 18. Bd3
{[%clk 00:25:09]} {[%emt 00:11:59]} Rfd8 {[%clk 00:47:19]} {[%emt 00:06:01]} 19.
Qe2 {[%clk 00:21:34]} {[%emt 00:04:05]} Qf4 {[%clk 00:46:53]} {[%emt 00:00:55]}
20. d5 {[%clk 00:19:33]} {[%emt 00:02:33]} Re8 {[%clk 00:42:53]} {[%emt
00:04:29]} 21. g3 {[%clk 00:18:55]} {[%emt 00:01:09]} Qd6 {[%clk 00:41:49]}
{[%emt 00:01:34]} 22. Qh5 {[%clk 00:17:39]} {[%emt 00:01:45]} h6 {[%clk
00:39:52]} {[%emt 00:02:27]} 23. f4 {[%clk 00:16:46]} {[%emt 00:01:24]} Be7
{[%clk 00:40:13]} {[%emt 00:00:08]} 24. Qg4 {[%clk 00:11:06]} {[%emt 00:06:09]}
Bf8 {[%clk 00:37:47]} {[%emt 00:02:57]} 25. f5 {[%clk 00:09:51]} {[%emt
00:01:46]} exd5 {[%clk 00:29:03]} {[%emt 00:09:13]} 26. Bxg7 {[%clk 00:07:33]}
{[%emt 00:02:48]} Bxg7 {[%clk 00:29:32]} {[%emt 00:00:01]} 27. f6 {[%clk
00:07:57]} {[%emt 00:00:07]} Qxf6 {[%clk 00:29:58]} {[%emt 00:00:03]} 28. Rxf6
{[%clk 00:08:21]} {[%emt 00:00:06]} Rxe3 {[%clk 00:30:23]} {[%emt 00:00:06]} 29.
Rxf7 {[%clk 00:05:51]} {[%emt 00:03:00]} Kxf7 {[%clk 00:30:41]} {[%emt
00:00:11]} 30. Qg6+ {[%clk 00:06:15]} {[%emt 00:00:06]} Ke7 {[%clk 00:30:33]}
{[%emt 00:00:38]} 31. Qxg7+ {[%clk 00:06:39]} {[%emt 00:00:07]} Kd6 {[%clk
00:30:55]} {[%emt 00:00:08]} 32. Qxh6+ {[%clk 00:07:01]} {[%emt 00:00:08]} Re6
{[%clk 00:31:23]} {[%emt 00:00:01]} 33. Qf4+ {[%clk 00:06:48]} {[%emt
00:00:43]} Ke7 {[%clk 00:31:19]} {[%emt 00:00:34]} 34. Bf5 {[%clk 00:06:05]}
{[%emt 00:01:13]} Rxc4 {[%clk 00:31:18]} {[%emt 00:00:32]} 35. Qg5+ {[%clk
00:05:26]} {[%emt 00:01:08]} Kd6 {[%clk 00:30:47]} {[%emt 00:01:01]} 36. Qd8+
{[%clk 00:02:18]} {[%emt 00:03:38]} Ke5 {[%clk 00:31:16]} {[%emt 00:00:02]} 37.
Re1+ {[%clk 00:01:18]} {[%emt 00:01:30]} Kxf5 {[%clk 00:31:36]} {[%emt
00:00:09]} 38. Qf8+ {[%clk 00:01:45]} {[%emt 00:00:03]} Rf6 {[%clk 00:30:26]}
{[%emt 00:01:41]} 39. Rf1+ {[%clk 00:02:11]} {[%emt 00:00:04]} Ke4 {[%clk
00:30:53]} {[%emt 00:00:02]} 40. Qxf6 {[%clk 00:02:30]} {[%emt 00:00:11]} Rc5
{[%clk 00:28:04]} {[%emt 00:03:20]} 41. Rf4+ {[%clk 00:02:39]} {[%emt
00:00:21]} Kd3 {[%clk 00:28:22]} {[%emt 00:00:11]} 42. Qd4+ {[%clk 00:02:58]}
{[%emt 00:00:10]} 1-0

[Event "Masterklassen-Elit 2025"]
[Site "Uppsala, Sweden"]
[Date "2025.06.28"]
[Round "1.4"]
[White "Thorn, Eric"]
[Black "Wiedenkeller, Michael"]
[Result "0-1"]
[TimeControl "90 min for 40 move + 30 min with an increment of 30 sec starting move 1"]
[WhiteTitle "FM"]
[BlackTitle "IM"]
[WhiteFideId "1710729"]
[BlackFideId "1700146"]
[WhiteElo "2357"]
[BlackElo "2384"]

1. d4 {[%clk 01:30:57]} {[%emt 00:00:02]} Nf6 {[%clk 01:30:23]} {[%emt
00:00:37]} 2. c4 {[%clk 01:31:15]} {[%emt 00:00:13]} e6 {[%clk 01:30:45]}
{[%emt 00:00:08]} 3. Nc3 {[%clk 01:31:22]} {[%emt 00:00:23]} Bb4 {[%clk
01:31:01]} {[%emt 00:00:14]} 4. Qc2 {[%clk 01:31:10]} {[%emt 00:00:41]} O-O
{[%clk 01:31:01]} {[%emt 00:00:31]} 5. e4 {[%clk 01:30:23]} {[%emt 00:01:18]}
d6 {[%clk 01:30:11]} {[%emt 00:01:19]} 6. e5 {[%clk 01:27:18]} {[%emt
00:03:36]} dxe5 {[%clk 01:27:23]} {[%emt 00:03:18]} 7. dxe5 {[%clk 01:26:47]}
{[%emt 00:00:59]} Ng4 {[%clk 01:27:20]} {[%emt 00:00:34]} 8. Nf3 {[%clk
01:26:50]} {[%emt 00:00:27]} Nc6 {[%clk 01:04:21]} {[%emt 00:23:29]} 9. Bf4
{[%clk 01:26:41]} {[%emt 00:00:38]} f5 {[%clk 00:42:16]} {[%emt 00:22:36]} 10.
Rd1 {[%clk 01:20:53]} {[%emt 00:06:18]} Qe8 {[%clk 00:38:14]} {[%emt 00:04:33]}
11. h3 {[%clk 01:17:40]} {[%emt 00:03:41]} Nh6 {[%clk 00:38:36]} {[%emt
00:00:07]} 12. a3 {[%clk 01:17:24]} {[%emt 00:00:48]} Be7 {[%clk 00:36:21]}
{[%emt 00:02:44]} 13. Be2 {[%clk 01:02:07]} {[%emt 00:15:47]} Nf7 {[%clk
00:34:54]} {[%emt 00:01:57]} 14. g4 {[%clk 00:52:04]} {[%emt 00:10:34]} g6
{[%clk 00:32:15]} {[%emt 00:03:09]} 15. gxf5 {[%clk 00:46:27]} {[%emt
00:06:06]} gxf5 {[%clk 00:29:37]} {[%emt 00:03:09]} 16. Qd2 {[%clk 00:36:08]}
{[%emt 00:10:49]} Kh8 {[%clk 00:25:21]} {[%emt 00:04:46]} 17. h4 {[%clk
00:25:01]} {[%emt 00:11:36]} a6 {[%clk 00:19:03]} {[%emt 00:06:49]} 18. Qe3
{[%clk 00:21:45]} {[%emt 00:03:46]} Rg8 {[%clk 00:14:40]} {[%emt 00:04:53]} 19.
Ng5 {[%clk 00:16:53]} {[%emt 00:05:22]} Qf8 {[%clk 00:10:10]} {[%emt 00:04:59]}
20. Bf3 {[%clk 00:08:49]} {[%emt 00:08:35]} Nfd8 {[%clk 00:08:08]} {[%emt
00:02:32]} 21. Bxc6 {[%clk 00:06:23]} {[%emt 00:02:56]} bxc6 {[%clk 00:05:37]}
{[%emt 00:03:01]} 22. Qf3 {[%clk 00:03:59]} {[%emt 00:02:54]} Qe8 {[%clk
00:05:19]} {[%emt 00:00:48]} 23. Kd2 {[%clk 00:02:44]} {[%emt 00:01:45]} Bb7
{[%clk 00:03:07]} {[%emt 00:02:43]} 24. Kc2 {[%clk 00:02:27]} {[%emt 00:00:46]}
Rb8 {[%clk 00:01:53]} {[%emt 00:01:44]} 25. Rhg1 {[%clk 00:02:50]} {[%emt
00:00:08]} c5 {[%clk 00:02:09]} {[%emt 00:00:13]} 26. Qe3 {[%clk 00:02:41]}
{[%emt 00:00:38]} Bc6 {[%clk 00:01:43]} {[%emt 00:00:57]} 27. Kc1 {[%clk
00:02:26]} {[%emt 00:00:45]} Qh5 {[%clk 00:01:43]} {[%emt 00:00:29]} 28. Nh3
{[%clk 00:01:38]} {[%emt 00:01:19]} Nf7 {[%clk 00:01:49]} {[%emt 00:00:24]} 29.
Ng5 {[%clk 00:01:03]} {[%emt 00:01:06]} Nd8 {[%clk 00:01:46]} {[%emt 00:00:32]}
30. Nh3 {[%clk 00:01:29]} {[%emt 00:00:04]} Nf7 {[%clk 00:01:16]} {[%emt
00:01:00]} 31. Bg5 {[%clk 00:01:53]} {[%emt 00:00:06]} Nxg5 {[%clk 00:01:01]}
{[%emt 00:00:44]} 32. Nxg5 {[%clk 00:01:27]} {[%emt 00:00:56]} Rg6 {[%clk
00:01:13]} {[%emt 00:00:19]} 33. f4 {[%clk 00:00:35]} {[%emt 00:01:22]} Rbg8
{[%clk 00:00:45]} {[%emt 00:00:58]} 34. Rg3 {[%clk 00:00:36]} {[%emt 00:00:29]}
h6 {[%clk 00:01:05]} {[%emt 00:00:11]} 35. Rdg1 {[%clk 00:00:50]} {[%emt
00:00:15]} Bxg5 {[%clk 00:00:32]} {[%emt 00:01:03]} 36. hxg5 {[%clk 00:01:04]}
{[%emt 00:00:15]} R6g7 {[%clk 00:00:34]} {[%emt 00:00:28]} 37. Rh3 {[%clk
00:01:12]} {[%emt 00:00:22]} Qg6 {[%clk 00:00:47]} {[%emt 00:00:18]} 38. Qxc5
{[%clk 00:00:53]} {[%emt 00:00:49]} Ba8 {[%clk 00:01:03]} {[%emt 00:00:13]} 39.
Rgg3 {[%clk 00:00:35]} {[%emt 00:00:49]} h5 {[%clk 00:00:56]} {[%emt 00:00:37]}
40. Rd3 {[%clk 00:00:35]} {[%emt 00:00:29]} Rh7 {[%clk 00:00:47]} {[%emt
00:00:40]} 41. Rh4 {[%clk 00:25:55]} {[%emt 00:05:10]} Qe8 {[%clk 00:28:59]}
{[%emt 00:02:17]} 42. Qf2 {[%clk 00:24:40]} {[%emt 00:01:45]} Kg7 {[%clk
00:26:26]} {[%emt 00:03:03]} 43. Rh2 {[%clk 00:22:14]} {[%emt 00:02:56]} Kg6
{[%clk 00:24:18]} {[%emt 00:02:38]} 44. Qd2 {[%clk 00:19:34]} {[%emt 00:03:10]}
Qc6 {[%clk 00:19:10]} {[%emt 00:05:38]} 45. Rd4 {[%clk 00:13:50]} {[%emt
00:06:14]} Rgg7 {[%clk 00:11:21]} {[%emt 00:08:20]} 46. Qd1 {[%clk 00:09:14]}
{[%emt 00:05:05]} Bb7 {[%clk 00:08:46]} {[%emt 00:03:05]} 47. Kc2 {[%clk
00:05:29]} {[%emt 00:04:16]} h4 {[%clk 00:04:07]} {[%emt 00:05:09]} 48. b3
{[%clk 00:01:16]} {[%emt 00:04:43]} Rd7 {[%clk 00:00:54]} {[%emt 00:03:42]} 49.
Rxd7 Rxd7 {[%clk 00:01:23]} 50. Qe1 {[%clk 00:00:56]} {[%emt 00:00:25]} Rh7
{[%clk 00:00:36]} {[%emt 00:01:18]} 51. Rxh4 {[%clk 00:00:57]} {[%emt
00:00:29]} Qg2+ {[%clk 00:00:43]} {[%emt 00:00:22]} 52. Kc1 {[%clk 00:01:05]}
{[%emt 00:00:23]} Rd7 {[%clk 00:00:38]} {[%emt 00:00:35]} 53. Rh6+ {[%clk
00:00:35]} {[%emt 00:01:00]} Kg7 {[%clk 00:01:07]} 54. Rxe6 {[%clk 00:00:36]}
{[%emt 00:00:28]} Be4 {[%clk 00:00:39]} {[%emt 00:00:59]} 55. Qe2 {[%clk
00:00:35]} {[%emt 00:00:32]} Qg3 {[%clk 00:00:47]} {[%emt 00:00:21]} 56. Nd5
{[%clk 00:00:34]} {[%emt 00:00:32]} Qxb3 {[%clk 00:00:43]} {[%emt 00:00:34]}
0-1